bitfinex-derivatives/quotes_BTCF0:USTF0_20241210
["timestamp","ask_amount","ask_price","bid_price","bid_amount"]
[1733843813156,0.44826029,97706.0,97704.0,0.060151]
[1733843813659,0.49941029,97706.0,97704.0,0.009]
[1733843813860,0.051155,97697.0,97689.0,0.05125686]
[1733843814060,0.3608,97695.0,97689.0,9.786e-05]
[1733843814360,6e-05,97690.0,97689.0,9.786e-05]
[1733843814562,0.00017485,97690.0,97689.0,9.786e-05]
[1733843814761,0.44743514,97690.0,97650.0,0.3608]
[1733843815062,0.23222792,97680.0,97650.0,0.3608]
[1733843815253,0.3608,97686.0,97663.0,0.37436751]
[1733843815456,0.85922129,97686.0,97675.0,0.051166]
[1733843815662,0.85922129,97686.0,97672.0,0.02059109]
[1733843815663,0.80806029,97686.0,97672.0,0.02059109]
[1733843815874,0.80806029,97686.0,97684.0,0.051162]
[1733843816160,0.00011485,97690.0,97689.0,0.051159]
[1733843816466,0.00011485,97690.0,97689.0,0.051279]
[1733843816763,0.00111485,97690.0,97689.0,0.051279]
[1733843816965,0.00111485,97690.0,97689.0,0.00012]
[1733843817266,0.00011485,97690.0,97689.0,0.051279]
[1733843817459,0.44737514,97690.0,97689.0,0.051279]
[1733843817771,0.44737514,97690.0,97689.0,0.00012]
[1733843818353,0.44737514,97690.0,97684.0,0.003]
[1733843818354,0.00011485,97690.0,97684.0,0.003]
[1733843818567,0.05117,97669.0,97663.0,0.3608]
[1733843818866,0.3608,97685.0,97663.0,0.051173]
[1733843818867,0.3608,97670.0,97663.0,0.051173]
[1733843819365,0.80206029,97670.0,97669.0,0.00012]
[1733843819959,0.3608,97674.0,97669.0,0.00012]
[1733843820165,0.80212029,97685.0,97669.0,0.00012]
[1733843820465,0.36086,97685.0,97684.0,0.00012]
[1733843820662,0.80212029,97685.0,97684.0,0.00012]
[1733843820856,0.66086,97685.0,97646.0,0.3608]
[1733843821161,6e-05,97655.0,97651.0,0.051179]
[1733843821372,6e-05,97655.0,97638.0,0.3608]
[1733843821373,0.05132558,97655.0,97638.0,0.3608]
[1733843821558,0.05132558,97655.0,97623.0,0.051194]
[1733843821559,0.23222792,97641.0,97623.0,0.051194]
[1733843821756,0.3608,97625.0,97603.0,0.03921128]
[1733843821962,0.36086,97625.0,97622.0,0.051194]
[1733843822166,0.4396955,97625.0,97623.0,0.051194]
[1733843822468,0.4396955,97625.0,97607.0,0.01349154]
[1733843822855,0.4396955,97625.0,97623.0,0.051193]
[1733843823261,0.36186,97625.0,97624.0,0.25019673]
[1733843823458,0.3608,97632.0,97624.0,0.25119673]
[1733843823666,0.3608,97634.0,97633.0,0.051189]
[1733843824457,0.4396355,97634.0,97633.0,0.051189]
[1733843825361,0.3608,97646.0,97633.0,0.051189]
[1733843825567,0.3608,97646.0,97645.0,0.051182]
[1733843825867,0.3608,97665.0,97654.0,0.051178]
[1733843826070,0.43972408,97655.0,97654.0,0.051178]
[1733843826271,0.43972408,97655.0,97654.0,0.00012]
[1733843826659,0.43972408,97655.0,97633.0,0.006]
[1733843826660,0.36088858,97655.0,97633.0,0.006]
[1733843826864,0.36088858,97655.0,97651.0,0.051179]
[1733843826865,8.858e-05,97655.0,97651.0,0.051179]
[1733843827163,8.858e-05,97655.0,97654.0,0.051178]
[1733843828668,5.8e-07,97655.0,97654.0,0.051178]
[1733843829060,0.00100058,97655.0,97654.0,0.051178]
[1733843829464,0.00100058,97655.0,97654.0,0.052178]
[1733843829656,5.8e-07,97655.0,97654.0,0.054178]
[1733843829862,0.3608,97667.0,97666.0,0.051171]
[1733843830179,0.3608,97667.0,97666.0,0.051291]
[1733843830866,0.36088026,97667.0,97666.0,0.051291]
[1733843831964,0.36088026,97667.0,97666.0,0.052291]
[1733843832877,0.36388026,97667.0,97666.0,0.052291]
[1733843833378,0.36088026,97667.0,97666.0,0.052291]
[1733843833561,0.36488026,97667.0,97666.0,0.052291]
[1733843833966,0.36086,97685.0,97666.0,0.052291]
[1733843833967,6e-05,97685.0,97666.0,0.36192]
[1733843834165,6e-05,97685.0,97684.0,0.051161]
[1733843834372,6e-05,97685.0,97684.0,0.051281]
[1733843834974,0.00018477,97685.0,97666.0,0.00496]
[1733843835276,0.3608,97667.0,97666.0,0.004]
[1733843835467,0.3608,97676.0,97675.0,0.051165]
[1733843835775,0.3608,97676.0,97675.0,0.051285]
[1733843836164,0.09149471,97685.0,97684.0,0.05116]
[1733843836568,0.00018477,97685.0,97684.0,0.05128]
[1733843836866,0.00118477,97685.0,97684.0,0.05128]
[1733843838473,0.00118477,97685.0,97684.0,0.00012]
[1733843838474,0.05434377,97685.0,97684.0,0.00012]
[1733843838672,0.05434377,97685.0,97666.0,0.005]
[1733843838673,0.30318477,97685.0,97666.0,0.005]
[1733843838983,0.30318477,97685.0,97653.0,0.00153589]
[1733843838984,0.05117,97665.0,97653.0,0.00153589]
[1733843839281,0.3608,97657.0,97656.0,0.051174]
[1733843839483,0.12144481,97669.0,97667.0,0.051169]
[1733843839682,0.12144481,97670.0,97653.0,0.00153589]
[1733843839881,0.3608,97654.0,97653.0,0.00153589]
[1733843840272,0.77289209,97654.0,97653.0,0.00153589]
[1733843840578,0.051186,97635.0,97632.0,0.051187]
[1733843840790,0.411987,97633.0,97624.0,0.00153636]
[1733843841083,0.36086,97633.0,97631.0,0.051308]
[1733843841685,6e-05,97633.0,97632.0,0.03949465]
[1733843842282,6e-05,97633.0,97631.0,0.056308]
[1733843842283,0.36086,97633.0,97631.0,0.00512]
[1733843842581,6e-05,97632.0,97631.0,0.00512]
[1733843842793,6e-05,97632.0,97631.0,0.056308]
[1733843843084,6e-05,97632.0,97631.0,0.00512]
[1733843843592,6e-05,97632.0,97631.0,0.062308]
[1733843843879,6e-05,97632.0,97631.0,0.09673348]
[1733843844484,0.3608,97642.0,97640.0,0.051183]
[1733843844778,0.12212729,97645.0,97644.0,0.051181]
[1733843844985,2.9e-07,97645.0,97644.0,0.051181]
[1733843845191,0.00011609,97654.0,97644.0,0.051181]
[1733843845383,0.00011609,97654.0,97653.0,0.051176]
[1733843845580,0.3608,97666.0,97653.0,0.03945809]
[1733843845881,0.3608,97666.0,97665.0,0.05129]
[1733843846086,0.45239229,97666.0,97665.0,0.09062809]
[1733843846488,0.3608,97666.0,97665.0,0.09062809]
[1733843846676,0.36091473,97666.0,97665.0,0.09062809]
[1733843847179,0.00411473,97666.0,97665.0,0.09062809]
[1733843847484,0.09159229,97677.0,97676.0,0.051164]
[1733843847683,0.09159229,97678.0,97676.0,0.411964]
[1733843847886,2.9e-07,97678.0,97677.0,0.40013809]
[1733843848183,0.3608,97709.0,97677.0,0.40013809]
[1733843848384,0.00010158,97684.0,97678.0,0.03933809]
[1733843848690,0.00010158,97684.0,97683.0,0.05116]
[1733843848879,0.00010158,97684.0,97683.0,0.09044008]
[1733843849577,0.00010158,97684.0,97683.0,0.05116]
[1733843850187,0.00110158,97684.0,97671.0,0.0001126]
[1733843850382,0.3608,97672.0,97671.0,0.0512796]
[1733843850580,0.36086,97672.0,97671.0,0.09056492]
[1733843850778,0.412026,97672.0,97671.0,0.0001126]
[1733843850980,0.36086,97672.0,97671.0,0.03945278]
[1733843851485,0.36086,97672.0,97671.0,0.07879276]
[1733843851784,0.36086,97672.0,97671.0,0.0001126]
[1733843851983,0.36086,97672.0,97665.0,0.006]
[1733843852177,0.051169,97666.0,97665.0,0.006]
[1733843852383,0.051174,97657.0,97656.0,0.00153559]
[1733843852584,0.3608,97657.0,97636.0,0.18318497]
[1733843852786,0.3608,97642.0,97641.0,0.051302]
[1733843853383,0.36093069,97642.0,97641.0,0.0907208]
[1733843853687,0.36099069,97642.0,97641.0,0.0907208]
[1733843854287,0.36099069,97642.0,97641.0,0.057302]
[1733843854982,0.36099069,97642.0,97641.0,0.09662205]
[1733843855179,6.9e-07,97642.0,97641.0,0.057302]
[1733843855378,0.001,97657.0,97654.0,0.051176]
[1733843855379,0.15271646,97655.0,97654.0,0.051176]
[1733843855582,0.15271646,97678.0,97653.0,0.3608]
[1733843855783,0.15271646,97678.0,97677.0,0.051164]
[1733843856179,0.15284594,97678.0,97677.0,0.051164]
[1733843856386,0.00012948,97678.0,97677.0,0.051164]
[1733843856589,0.00012948,97678.0,97677.0,0.09041821]
[1733843857200,1e-06,97685.0,97684.0,0.05116]
[1733843857494,1e-06,97685.0,97684.0,0.45133421]
[1733843858281,9.1e-07,97685.0,97684.0,0.45133421]
[1733843858487,9.1e-07,97685.0,97684.0,0.75133421]
[1733843858899,0.18318497,97726.0,97718.0,0.051142]
[1733843859191,0.18318497,97726.0,97718.0,0.051262]
[1733843859781,0.00010745,97719.0,97718.0,0.051262]
[1733843860182,0.36090745,97719.0,97718.0,0.00012]
[1733843860591,0.051145,97713.0,97702.0,0.05115]
[1733843860789,0.3608,97703.0,97702.0,0.05115]
[1733843861194,0.3608,97703.0,97700.0,0.00012348]
[1733843861390,0.36086,97703.0,97701.0,0.051151]
[1733843862893,0.36186,97703.0,97701.0,0.051151]
[1733843863491,0.00010745,97719.0,97718.0,0.051144]
[1733843863898,0.00010745,97719.0,97718.0,0.051264]
[1733843866503,0.00810745,97719.0,97718.0,0.051264]
[1733843866996,0.00010745,97719.0,97718.0,0.051264]
[1733843867193,0.00110745,97719.0,97718.0,0.051264]
[1733843867397,0.00210745,97719.0,97718.0,0.051264]
[1733843869209,0.36290745,97719.0,97718.0,0.051264]
[1733843870004,0.36290745,97719.0,97718.0,0.00012]
[1733843870704,0.36190745,97719.0,97718.0,0.00012]
[1733843871008,0.36390745,97719.0,97718.0,0.00012]
[1733843872808,0.36690745,97719.0,97718.0,0.00012]
[1733843873009,0.41805145,97719.0,97718.0,0.00012]
[1733843873423,0.41505145,97719.0,97718.0,0.00012]
[1733843874109,0.41705145,97719.0,97718.0,0.00012]
[1733843874310,0.41905145,97719.0,97718.0,0.00012]
[1733843875311,0.36790745,97719.0,97718.0,0.00012]
[1733843876011,0.37090745,97719.0,97718.0,0.00012]
[1733843876603,0.37090745,97719.0,97718.0,0.0139524]
[1733843877510,0.36990745,97719.0,97718.0,0.0139524]
[1733843877706,0.36890745,97719.0,97718.0,0.0139524]
[1733843878309,0.36690745,97719.0,97718.0,0.0139524]
[1733843879609,0.36190745,97719.0,97718.0,0.0139524]
[1733843879927,0.36790745,97719.0,97718.0,0.0139524]
[1733843880122,0.36790745,97719.0,97718.0,0.0650964]
[1733843880410,0.36190745,97719.0,97718.0,0.0650964]
[1733843880613,0.36890745,97719.0,97718.0,0.051264]
[1733843880805,0.36890745,97719.0,97718.0,0.00012]
[1733843880806,0.42005145,97719.0,97718.0,0.00012]
[1733843882112,0.41805145,97719.0,97718.0,0.00012]
[1733843882509,0.41805145,97719.0,97700.0,0.00012348]
[1733843882510,0.051153,97701.0,97700.0,0.00012348]
[1733843882714,0.772753,97701.0,97700.0,0.00012348]
[1733843882912,6e-05,97701.0,97700.0,0.00012348]
[1733843883811,0.36086,97701.0,97700.0,0.01364242]
[1733843884219,0.36086,97701.0,97700.0,0.00012348]
[1733843884712,0.36086,97701.0,97700.0,0.04183196]
[1733843884915,0.36086,97701.0,97675.0,0.18414497]
[1733843885125,0.41196,97688.0,97680.0,0.051164]
[1733843885312,0.41196,97688.0,97669.0,0.02020642]
[1733843885621,0.56489596,97688.0,97682.0,0.051163]
[1733843885816,0.051161,97687.0,97682.0,0.051163]
[1733843886118,0.3608,97685.0,97683.0,0.0398769]
[1733843886311,0.3608,97685.0,97684.0,0.0398769]
[1733843886817,0.3608,97685.0,97663.0,0.18318497]
[1733843887022,0.411961,97685.0,97684.0,0.03991636]
[1733843887221,0.051172,97665.0,97663.0,0.18318497]
[1733843887420,0.7216,97664.0,97662.0,0.051173]
[1733843887626,0.72166,97664.0,97662.0,0.051173]
[1733843887922,0.772833,97664.0,97662.0,0.051173]
[1733843888123,0.051177,97656.0,97652.0,0.00012187]
[1733843888432,0.051177,97656.0,97655.0,0.05271289]
[1733843888433,6e-05,97656.0,97655.0,0.05271289]
[1733843888612,6e-05,97656.0,97655.0,0.06620667]
[1733843888812,6e-05,97656.0,97655.0,0.42700667]
[1733843889223,6e-05,97656.0,97655.0,0.06620667]
[1733843890120,0.00106,97656.0,97655.0,0.06620667]
[1733843890525,6e-05,97664.0,97663.0,0.051173]
[1733843890823,6e-05,97664.0,97663.0,0.412093]
[1733843891120,6e-05,97664.0,97663.0,0.051293]
[1733843893726,6e-05,97664.0,97663.0,0.052293]
[1733843894026,0.00106,97664.0,97663.0,0.053293]
[1733843894217,0.3608,97687.0,97684.0,0.051162]
[1733843894619,0.3608,97695.0,97684.0,0.051162]
[1733843895218,0.3608,97710.0,97709.0,0.051149]
[1733843895729,0.00052001,97728.0,97712.0,0.051147]
[1733843895926,0.3608,97721.0,97709.0,0.00012]
[1733843896115,0.3608,97721.0,97701.0,0.051153]
[1733843896314,0.3608,97721.0,97709.0,0.051149]
[1733843896315,6e-05,97710.0,97709.0,0.051149]
[1733843896924,0.00106,97710.0,97709.0,0.051149]
[1733843898130,0.00206,97710.0,97709.0,0.051149]
[1733843899619,0.00206,97710.0,97709.0,0.03932533]
[1733843899819,0.00206,97710.0,97694.0,0.36176]
[1733843900030,0.00206,97710.0,97709.0,0.051149]
[1733843900626,0.00106,97710.0,97709.0,0.051149]
[1733843900826,0.00206,97710.0,97709.0,0.051149]
[1733843902323,0.00306,97710.0,97709.0,0.051149]
[1733843902727,0.00406,97710.0,97709.0,0.051149]
[1733843902923,0.00406,97710.0,97709.0,0.09047778]
[1733843903327,0.00011091,97720.0,97719.0,0.051144]
[1733843903823,0.00011091,97720.0,97719.0,0.411944]
[1733843904024,0.00011091,97720.0,97719.0,0.051144]
[1733843905131,0.00411091,97720.0,97719.0,0.051144]
[1733843906121,0.00911091,97720.0,97719.0,0.051144]
[1733843908930,0.36991091,97720.0,97704.0,0.051151]
[1733843909121,0.36991091,97720.0,97692.0,0.18318497]
[1733843909122,0.051157,97693.0,97692.0,0.18318497]
[1733843909321,0.411957,97693.0,97672.0,0.18318497]
[1733843909627,0.3608,97681.0,97680.0,0.051164]
[1733843910027,0.3608,97681.0,97680.0,0.09066586]
[1733843911228,0.3608,97693.0,97692.0,0.051158]
[1733843911530,0.3608,97693.0,97692.0,0.09081587]
[1733843911930,0.3618,97693.0,97692.0,0.09081587]
[1733843912126,0.3618,97693.0,97692.0,0.03965787]
[1733843912431,0.3618,97693.0,97680.0,0.005]
[1733843912432,0.051163,97682.0,97680.0,0.005]
[1733843912630,0.3608,97681.0,97680.0,0.005]
[1733843912930,0.3619067,97693.0,97688.0,0.05116]
[1733843912931,0.12194403,97689.0,97688.0,0.05116]
[1733843913339,0.12194403,97690.0,97688.0,0.05128]
[1733843913832,0.12194403,97690.0,97689.0,0.00012]
[1733843915528,0.3608,97702.0,97689.0,0.00012]
[1733843915725,0.15254844,97703.0,97701.0,0.051153]
[1733843915924,0.15254844,97703.0,97702.0,0.3608]
[1733843916232,0.15254844,97703.0,97702.0,0.36092]
[1733843916630,0.1526767,97703.0,97702.0,0.36092]
[1733843917327,0.00012826,97703.0,97702.0,0.36092]
[1733843917533,0.001,97703.0,97702.0,0.36092]
[1733843918138,0.2137158,97720.0,97702.0,0.36092]
[1733843918336,0.36132001,97734.0,97725.0,0.05114]
[1733843918638,0.3608,97736.0,97733.0,0.00012]
[1733843918833,0.3608,97736.0,97734.0,0.051136]
[1733843918834,7.417e-05,97735.0,97734.0,0.051136]
[1733843919044,0.3608,97766.0,97734.0,0.051136]
[1733843919339,0.3608,97766.0,97765.0,0.05112]
[1733843919537,0.0126673,97775.0,97774.0,0.051115]
[1733843919842,0.3608,97791.0,97789.0,0.051107]
[1733843920051,0.00012035,97790.0,97789.0,0.051107]
[1733843921143,0.00012035,97790.0,97780.0,0.051111]
[1733843921329,0.3608,97781.0,97780.0,0.051111]
[1733843921533,0.3608,97781.0,97771.0,0.051116]
[1733843921735,0.3608,97772.0,97769.0,0.01474951]
[1733843922039,0.36086,97772.0,97770.0,0.051117]
[1733843922640,6e-05,97772.0,97770.0,0.051117]
[1733843923027,0.00306,97772.0,97770.0,0.051117]
[1733843923536,0.00306,97772.0,97765.0,0.01297111]
[1733843923725,0.00306,97772.0,97762.0,0.051121]
[1733843923930,6e-05,97766.0,97758.0,0.3608]
[1733843924126,6e-05,97766.0,97741.0,0.00153438]
[1733843924127,0.3608,97762.0,97754.0,0.01269076]
[1733843924326,6e-05,97759.0,97748.0,0.3608]
[1733843924532,6e-05,97755.0,97748.0,0.3608]
[1733843924833,0.3608,97762.0,97748.0,0.3608]
[1733843924834,6e-05,97749.0,97748.0,0.3608]
[1733843925434,6e-05,97749.0,97741.0,0.01483645]
[1733843925628,6e-05,97749.0,97741.0,0.00153438]
[1733843925629,0.411931,97743.0,97741.0,0.00153438]
[1733843926137,0.6608,97743.0,97721.0,0.00012492]
[1733843926338,0.3608,97722.0,97721.0,0.00012492]
[1733843926537,0.36086,97722.0,97721.0,0.00012492]
[1733843926929,6e-05,97722.0,97721.0,0.00012492]
[1733843927840,0.36086,97722.0,97721.0,0.00012492]
[1733843928832,0.36086,97722.0,97704.0,0.051151]
[1733843928833,0.051147,97712.0,97704.0,0.051151]
[1733843929131,0.36086,97705.0,97704.0,0.051151]
[1733843931030,0.36932001,97722.0,97704.0,0.051151]
[1733843931031,0.3638,97722.0,97704.0,0.411951]
[1733843931231,0.3608,97722.0,97721.0,0.051143]
[1733843931643,0.3608,97722.0,97713.0,0.051146]
[1733843931845,0.3608,97722.0,97697.0,0.01312265]
[1733843931846,0.3608,97714.0,97708.0,0.051149]
[1733843932039,0.36086,97714.0,97710.0,0.051148]
[1733843932547,0.051147,97713.0,97701.0,0.051153]
[1733843932745,0.3608,97702.0,97701.0,0.051153]
[1733843933441,0.36086,97702.0,97701.0,0.051153]
[1733843934146,0.36096893,97702.0,97701.0,0.051153]
[1733843936045,0.36096893,97702.0,97701.0,0.052153]
[1733843936543,0.3608,97714.0,97701.0,0.052153]
[1733843936740,0.3608,97722.0,97721.0,0.051143]
[1733843937449,0.3608,97737.0,97736.0,0.051135]
[1733843937640,0.36088133,97737.0,97736.0,0.051135]
[1733843937837,0.36088133,97737.0,97736.0,0.051255]
[1733843939850,0.00408133,97737.0,97736.0,0.06435136]
[1733843940341,0.00308133,97737.0,97736.0,0.06435136]
[1733843941148,0.051181,97763.0,97762.0,0.051121]
[1733843941149,6e-05,97763.0,97762.0,0.051121]
[1733843941554,6e-05,97763.0,97762.0,0.051241]
[1733843941741,0.3608,97772.0,97771.0,0.051116]
[1733843942146,4.4e-07,97772.0,97771.0,0.412036]
[1733843942358,0.3608,97791.0,97785.0,0.051109]
[1733843942753,0.3608,97791.0,97785.0,0.051229]
[1733843943341,0.00051084,97786.0,97785.0,0.051229]
[1733843943544,0.00651084,97786.0,97785.0,0.052229]
[1733843943750,0.01551084,97786.0,97785.0,0.052229]
[1733843944348,0.3608,97799.0,97798.0,0.051102]
[1733843944744,0.3608,97799.0,97798.0,0.051222]
[1733843945154,8.711e-05,97799.0,97798.0,0.051222]
[1733843946343,0.00908711,97799.0,97798.0,0.052222]
[1733843946541,3.7e-07,97800.0,97798.0,0.053222]
[1733843946740,0.3608,97819.0,97798.0,0.053222]
[1733843946951,0.3608,97819.0,97818.0,0.051092]
[1733843947154,0.3608,97819.0,97818.0,0.051212]
[1733843947564,0.36092736,97819.0,97818.0,0.00012]
[1733843947759,0.41201836,97819.0,97818.0,0.00012]
[1733843947952,0.66092736,97819.0,97798.0,0.002]
[1733843948254,0.367029,97799.0,97798.0,0.002]
[1733843948844,0.367029,97799.0,97798.0,0.001]
[1733843949056,0.051107,97790.0,97784.0,0.051109]
[1733843949245,0.3608,97785.0,97772.0,0.00153406]
[1733843949445,0.3608,97773.0,97772.0,0.05265006]
[1733843949659,0.36086,97773.0,97750.0,7.36e-05]
[1733843949951,0.36086,97751.0,97750.0,0.0512006]
[1733843950153,0.36097238,97751.0,97750.0,0.0512006]
[1733843950343,0.36097238,97751.0,97733.0,0.0129355]
[1733843950549,0.051137,97731.0,97728.0,0.051139]
[1733843950750,0.051137,97731.0,97723.0,0.00153481]
[1733843950751,0.15085604,97733.0,97731.0,0.051137]
[1733843951053,0.3608,97734.0,97733.0,0.051136]
[1733843951351,0.3608,97734.0,97733.0,0.051256]
[1733843951551,0.3608,97734.0,97733.0,0.00012]
[1733843951745,0.6608,97734.0,97723.0,0.05267581]
[1733843951950,0.3608,97724.0,97723.0,0.05267581]
[1733843952152,0.36089383,97724.0,97713.0,0.00012]
[1733843952460,0.3608,97714.0,97713.0,0.00012]
[1733843952951,0.3608,97714.0,97713.0,6.44e-06]
[1733843954153,0.3608,97714.0,97713.0,0.00200644]
[1733843954567,9.383e-05,97724.0,97713.0,0.01524289]
[1733843954858,9.383e-05,97724.0,97723.0,0.051262]
[1733843956154,8.3e-07,97724.0,97723.0,0.06411444]
[1733843957055,8.3e-07,97724.0,97723.0,0.06511444]
[1733843958952,8.3e-07,97724.0,97723.0,0.36411444]
[1733843959153,8.3e-07,97724.0,97723.0,0.37011444]
[1733843959559,0.3608,97768.0,97723.0,0.31297244]
[1733843959761,0.3608,97768.0,97762.0,0.051121]
[1733843959958,0.711918,97768.0,97767.0,0.00012]
[1733843960159,0.00013119,97767.0,97726.0,0.3608]
[1733843960355,0.3608,97739.0,97723.0,0.06637881]
[1733843960550,6e-05,97727.0,97726.0,0.05114]
[1733843962365,0.00106,97727.0,97726.0,0.05814]
[1733843963262,6e-05,97727.0,97726.0,0.05914]
[1733843963459,0.00106,97727.0,97726.0,0.06214]
[1733843963857,0.00114159,97727.0,97726.0,0.06214]
[1733843964572,0.00114159,97727.0,97726.0,0.011]
[1733843964871,0.36194159,97727.0,97726.0,0.009]
[1733843965661,0.36094159,97727.0,97726.0,0.006]
[1733843966268,0.36094159,97727.0,97726.0,0.004]
[1733843966468,0.36094159,97727.0,97726.0,0.002]
[1733843966966,0.00014159,97727.0,97726.0,0.002]
[1733843967462,0.3608,97744.0,97743.0,0.051131]
[1733843967868,0.3608,97744.0,97743.0,0.051251]
[1733843968469,0.36087439,97744.0,97743.0,0.051251]
[1733843968784,0.41200539,97744.0,97743.0,0.00012]
[1733843968961,0.41200539,97744.0,97726.0,0.002]
[1733843969273,0.36086,97727.0,97725.0,0.05114]
[1733843969457,6e-05,97727.0,97725.0,0.05114]
[1733843969664,6e-05,97726.0,97719.0,0.051143]
[1733843969965,0.3608,97732.0,97701.0,0.3608]
[1733843970166,0.3608,97715.0,97714.0,0.051146]
[1733843970561,0.3608,97715.0,97692.0,0.051158]
[1733843970759,0.3608,97715.0,97684.0,0.5537]
[1733843970760,8.584e-05,97714.0,97684.0,0.3608]
[1733843971056,0.00014584,97714.0,97710.0,0.051148]
[1733843971670,0.00014584,97714.0,97691.0,0.01259675]
[1733843971870,0.00014584,97714.0,97706.0,0.05115]
[1733843972064,0.00014584,97714.0,97691.0,0.01259675]
[1733843972266,0.00014584,97714.0,97711.0,0.051148]
[1733843972465,0.00014584,97714.0,97713.0,0.00600644]
[1733843972767,0.051153,97701.0,97673.0,0.051168]
[1733843973076,0.051162,97683.0,97679.0,0.01231207]
[1733843973266,0.772762,97683.0,97679.0,0.01231207]
[1733843973473,0.051169,97671.0,97666.0,0.051171]
[1733843973667,1.0216,97683.0,97666.0,0.051171]
[1733843973668,0.7216,97667.0,97666.0,0.051171]
[1733843973866,0.72166,97667.0,97666.0,0.051171]
[1733843974175,0.72176326,97667.0,97666.0,0.051171]
[1733843974365,0.09118348,97680.0,97660.0,0.3608]
[1733843974568,0.09118348,97680.0,97679.0,0.051165]
[1733843974869,0.3608,97696.0,97695.0,0.051156]
[1733843975372,0.36091241,97696.0,97695.0,0.00012]
[1733843975569,0.051162,97684.0,97682.0,0.005]
[1733843975775,0.3608,97683.0,97663.0,0.051173]
[1733843975964,0.001,97671.0,97670.0,0.051169]
[1733843976969,0.001,97671.0,97666.0,0.014]
[1733843977175,0.001,97671.0,97666.0,0.006]
[1733843977366,0.001,97671.0,97670.0,0.002]
[1733843977562,0.411968,97672.0,97670.0,0.002]
[1733843977969,0.411968,97672.0,97671.0,0.00012]
[1733843978270,0.411968,97672.0,97644.0,0.0206927]
[1733843978271,0.051175,97660.0,97644.0,0.0206927]
[1733843978472,0.2327951,97654.0,97653.0,0.051178]
[1733843978677,0.3608,97657.0,97656.0,0.051177]
[1733843979075,0.36091299,97657.0,97656.0,0.051177]
[1733843979474,0.36091299,97657.0,97656.0,0.051297]
[1733843980273,0.36091299,97657.0,97656.0,0.00012]
[1733843981173,0.36091299,97657.0,97656.0,0.00512]
[1733843981971,0.36191299,97657.0,97656.0,0.00512]
[1733843982980,0.36191299,97657.0,97656.0,0.00012]
[1733843983283,0.36191299,97657.0,97656.0,0.00312]
[1733843983768,0.00111299,97657.0,97656.0,0.00312]
[1733843984286,0.00111299,97657.0,97656.0,0.00012]
[1733843984488,0.00011299,97657.0,97656.0,0.00012]
[1733843985179,0.00011299,97657.0,97656.0,0.36092]
[1733843985180,9.9e-07,97657.0,97656.0,0.36092]
[1733843986581,9.9e-07,97657.0,97656.0,0.36292]
[1733843987180,9.9e-07,97657.0,97656.0,0.36392]
[1733843987683,9.9e-07,97657.0,97656.0,0.36592]
[1733843988077,0.00100099,97657.0,97656.0,0.36992]
[1733843988275,9.9e-07,97657.0,97656.0,0.36992]
[1733843988478,9.9e-07,97657.0,97656.0,0.36592]
[1733843988782,9.9e-07,97657.0,97656.0,0.37192]
[1733843989175,0.3608,97675.0,97656.0,0.37192]
[1733843989387,0.001,97657.0,97656.0,0.37192]
[1733843989682,0.001,97657.0,97656.0,0.3718]
[1733843990274,0.001,97657.0,97656.0,0.011]
[1733843990573,0.001,97657.0,97656.0,0.009]
[1733843990775,0.001,97657.0,97656.0,0.01]
[1733843990776,0.3618,97657.0,97656.0,0.01]
[1733843991091,0.6618,97657.0,97637.0,0.051186]
[1733843991384,0.6618,97657.0,97636.0,0.051187]
[1733843991385,0.72166,97638.0,97636.0,0.051187]
[1733843991780,6e-05,97637.0,97636.0,0.051187]
[1733843992177,0.00013215,97637.0,97636.0,0.051187]
[1733843992383,0.00013215,97637.0,97629.0,0.05119]
[1733843992384,0.051188,97634.0,97629.0,0.05119]
[1733843992584,0.051188,97634.0,97621.0,0.051195]
[1733843992773,0.051248,97634.0,97605.0,0.0200964]
[1733843993083,6e-05,97634.0,97616.0,0.051197]
[1733843993286,6e-05,97634.0,97629.0,0.051191]
[1733843993287,0.051189,97633.0,97629.0,0.051191]
[1733843993488,0.3608,97630.0,97629.0,0.051191]
[1733843993699,0.36086,97630.0,97629.0,0.051191]
[1733843994784,6e-05,97630.0,97629.0,0.051191]
[1733843994979,6e-05,97630.0,97629.0,0.055191]
[1733843995487,0.00106,97630.0,97629.0,0.055191]
[1733843996187,7.215e-05,97637.0,97636.0,0.051187]
[1733843997187,1.5e-07,97637.0,97636.0,0.051187]
[1733843997692,1.5e-07,97637.0,97636.0,0.054187]
[1733843997999,0.00100015,97637.0,97636.0,0.10551623]
[1733843998891,0.3608,97657.0,97656.0,0.051177]
[1733843999489,0.3608,97657.0,97648.0,0.051181]
[1733843999681,0.3608,97657.0,97655.0,0.051177]
[1733843999882,0.3608,97657.0,97656.0,0.00012]
[1733844000098,0.36089406,97657.0,97656.0,0.00012]
[1733844000695,0.36189406,97657.0,97656.0,0.00012]
[1733844001394,0.36289406,97657.0,97656.0,0.00012]
[1733844001892,0.00209406,97657.0,97656.0,0.00012]
[1733844002283,0.00109406,97657.0,97656.0,0.00012]
[1733844002485,0.00109406,97657.0,97656.0,0.00112]
[1733844004184,0.00100006,97657.0,97656.0,0.04027667]
[1733844004399,6e-08,97657.0,97656.0,0.04027667]
[1733844004595,0.15174064,97678.0,97658.0,0.153525]
[1733844004787,0.15174064,97678.0,97677.0,0.051166]
[1733844004985,0.15174064,97678.0,97677.0,0.051286]
[1733844005192,7.923e-05,97678.0,97677.0,0.051286]
[1733844005502,7.923e-05,97678.0,97677.0,0.03927667]
[1733844005503,0.36087923,97678.0,97677.0,0.03927667]
[1733844005792,0.36087923,97678.0,97677.0,0.00012]
[1733844005987,0.051175,97660.0,97659.0,0.051175]
[1733844006184,0.411975,97660.0,97658.0,0.001]
[1733844006388,0.411975,97660.0,97658.0,0.052175]
[1733844006593,0.3608,97660.0,97658.0,0.052175]
[1733844007199,0.12228339,97663.0,97658.0,0.052175]
[1733844007498,0.3608,97670.0,97664.0,0.051172]
[1733844007888,0.3608,97670.0,97669.0,0.05129]
[1733844009396,0.3618,97670.0,97669.0,0.05129]